﻿Department,Entity,Date,ExpenseType,ExpenseArea,Supplier,Payment Number,InvoiceDistribution Amount,InvoiceDescription,SupplierPostCode,Expenditure Type
FOOD STANDARDS AGENCY - Westminster,FOOD STANDARDS AGENCY - Westminster,2021-09-01,EXP - PURCHASE OF GOODS/SERVICES - OTHER - PROGRAMME EXPENDITURE,"SCIENCE STRATEGY, CAPABILITY AND RESEARCH",UNIVERSITY OF EXETER,1011716723,84851,Redacted under S40 FOI act,EX4 4QJ,Admin
FOOD STANDARDS AGENCY - Westminster,FOOD STANDARDS AGENCY - Westminster,2021-09-02,EXP - PURCHASE OF GOODS/SERVICES - OTHER - PROGRAMME EXPENDITURE,DIGITAL,I10 LTD,1011716737,38513,FSA728 - WP039 Front End Rebuild,NG31 6JL,Admin
FOOD STANDARDS AGENCY - Westminster,FOOD STANDARDS AGENCY - Westminster,2021-09-02,EXP - PURCHASE OF GOODS/SERVICES - OTHER - PROGRAMME EXPENDITURE,DIGITAL,I10 LTD,1011716737,7702.6,UK VAT - UK VAT,NG31 6JL,Admin
FOOD STANDARDS AGENCY - Westminster,FOOD STANDARDS AGENCY - Westminster,2021-09-02,EXP - AMORTISATION - INTANGIBLE ASSETS,IT SERVICE DELIVERY,ACS BUSINESS SUPPLIES LTD,1011716738,26762,"Redacted under S43 FOI Act Lenovo ThinkPad P15v Gen 1 - 15.6"" - Core i7 10850H - vPro - 16 GB RAM - 512 GB SSD - UK Quote No: SQUO00592504 (BC699)",BD17 7HB,Capital
FOOD STANDARDS AGENCY - Westminster,FOOD STANDARDS AGENCY - Westminster,2021-09-02,EXP - AMORTISATION - INTANGIBLE ASSETS,IT SERVICE DELIVERY,ACS BUSINESS SUPPLIES LTD,1011716738,5352.4,UK VAT - UK VAT,BD17 7HB,Capital
FOOD STANDARDS AGENCY - Westminster,FOOD STANDARDS AGENCY - Westminster,2021-09-06,EXP - PURCHASE OF GOODS/SERVICES - OTHER ICT COSTS - COMPUTER HARDWARE,IT SERVICE DELIVERY,METHODS BUSINESS AND DIGITAL TECHNOLOGY LTD,1011716752,33132.5,FS430635 Cloud Infrastructure Management (BC695),EC1A 4EN,Admin
FOOD STANDARDS AGENCY - Westminster,FOOD STANDARDS AGENCY - Westminster,2021-09-06,EXP - PURCHASE OF GOODS/SERVICES - OTHER ICT COSTS - COMPUTER HARDWARE,IT SERVICE DELIVERY,METHODS BUSINESS AND DIGITAL TECHNOLOGY LTD,1011716752,6626.5,UK VAT - UK VAT,EC1A 4EN,Admin
FOOD STANDARDS AGENCY - Westminster,FOOD STANDARDS AGENCY - Westminster,2021-09-07,EXP - PURCHASE OF GOODS/SERVICES - OTHER PROFESSIONAL SERVICES,OPERATIONAL DELIVERY,ARCO UK LTD,1011716763,-34.33,PPE Bulk purchase order funds 11770002606 Redacted under S43 FOI Act,HU1 2SJ,Admin
FOOD STANDARDS AGENCY - Westminster,FOOD STANDARDS AGENCY - Westminster,2021-09-07,EXP - PURCHASE OF GOODS/SERVICES - OTHER PROFESSIONAL SERVICES,OPERATIONAL DELIVERY,ARCO UK LTD,1011716763,27675.04,PPE Bulk purchase order funds 11770002606  Redacted under S43 FOI Act,HU1 2SJ,Admin
FOOD STANDARDS AGENCY - Westminster,FOOD STANDARDS AGENCY - Westminster,2021-09-08,EXP - PURCHASE OF GOODS/SERVICES - PERSONNEL RELATED - WELFARE SERVICES,RISK ASSESSMENT - RESEARCH AND DEVELOPMENT,BASIS RESEARCH LTD,1011716766,50000,New line PO11770006870  FS430651  req Redacted under S40 FOI Act,WIT 1PH,Admin
FOOD STANDARDS AGENCY - Westminster,FOOD STANDARDS AGENCY - Westminster,2021-09-09,EXP - PURCHASE OF GOODS/SERVICES - OTHER ICT COSTS - COMPUTER HARDWARE,IT SERVICE DELIVERY,COREAZURE LTD,1011716779,91058.94,IT24 Var 2 - Azure CSP  Consumption - Redacted under S43 FOI Act,EC1N 8TS,Admin
FOOD STANDARDS AGENCY - Westminster,FOOD STANDARDS AGENCY - Westminster,2021-09-09,EXP - PURCHASE OF GOODS/SERVICES - OTHER ICT COSTS - COMPUTER HARDWARE,IT STRATEGY & DEVELOPMENT,COREAZURE LTD,1011716779,4485,UK VAT - UK VAT,EC1N 8TS,Admin
FOOD STANDARDS AGENCY - Westminster,FOOD STANDARDS AGENCY - Westminster,2021-09-09,EXP - PURCHASE OF GOODS/SERVICES - OTHER ICT COSTS - COMPUTER HARDWARE,IT STRATEGY & DEVELOPMENT,COREAZURE LTD,1011716779,22425,Web Application Firewall and DDOS Protection (BC 837),EC1N 8TS,Admin
FOOD STANDARDS AGENCY - Westminster,FOOD STANDARDS AGENCY - Westminster,2021-09-09,EXP - PURCHASE OF GOODS/SERV - SUPPORT - IT SUPPORT SERVICES,IT SERVICE DELIVERY,LITTLE FISH UK LTD,1011716785,3122,IT25 Major Incident Management Redacted under S43 FOI Act,NG1 1LS,Admin
FOOD STANDARDS AGENCY - Westminster,FOOD STANDARDS AGENCY - Westminster,2021-09-09,EXP - PURCHASE OF GOODS/SERV - SUPPORT - IT SUPPORT SERVICES,IT SERVICE DELIVERY,LITTLE FISH UK LTD,1011716785,20843.5,IT19 Build Manage & Maintain (EUC) Redacted under S43 FOI Act,NG1 1LS,Admin
FOOD STANDARDS AGENCY - Westminster,FOOD STANDARDS AGENCY - Westminster,2021-09-09,EXP - PURCHASE OF GOODS/SERV - SUPPORT - IT SUPPORT SERVICES,IT SERVICE DELIVERY,LITTLE FISH UK LTD,1011716785,28264,IT25 Helpdesk Servicedesk Redacted under S43 FOI Act,NG1 1LS,Admin
FOOD STANDARDS AGENCY - Westminster,FOOD STANDARDS AGENCY - Westminster,2021-09-09,EXP - PURCHASE OF GOODS/SERVICES - TELECOMS - TELEPHONE,IT SERVICE DELIVERY,LITTLE FISH UK LTD,1011716785,14209,IT1 Networks Design and Delivery (LAN) Redacted under S43 FOI Act,NG1 1LS,Admin
FOOD STANDARDS AGENCY - Westminster,FOOD STANDARDS AGENCY - Westminster,2021-09-09,EXP - PURCHASE OF GOODS/SERV - SUPPORT - IT SUPPORT SERVICES,IT SERVICE DELIVERY,LITTLE FISH UK LTD,1011716785,4126.62,IT19 Zero Touch,NG1 1LS,Admin
FOOD STANDARDS AGENCY - Westminster,FOOD STANDARDS AGENCY - Westminster,2021-09-09,EXP - PURCHASE OF GOODS/SERVICES - OTHER - PROGRAMME EXPENDITURE,"NOVEL FOODS, GM, RADIOLOGICAL AND FEED ADDITIVES",C E F A S,2011700107,11553.1,Add a line to PO11770002090  req Redacted under S40 FOI act FS131008,NR33 0HT,Admin
FOOD STANDARDS AGENCY - Westminster,FOOD STANDARDS AGENCY - Westminster,2021-09-09,EXP - PURCHASE OF GOODS/SERVICES - OTHER - PROGRAMME EXPENDITURE,"NOVEL FOODS, GM, RADIOLOGICAL AND FEED ADDITIVES",C E F A S,2011700107,11553.1,Add a line to PO11770002090  req Redacted under S40 FOI act FS131008,NR33 0HT,Admin
FOOD STANDARDS AGENCY - Westminster,FOOD STANDARDS AGENCY - Westminster,2021-09-09,EXP - PURCHASE OF GOODS/SERVICES - OTHER - PROGRAMME EXPENDITURE,"NOVEL FOODS, GM, RADIOLOGICAL AND FEED ADDITIVES",C E F A S,2011700107,20217.95,Add a line to PO11770002090  req Redacted under S40 FOI act FS131008,NR33 0HT,Admin
FOOD STANDARDS AGENCY - Westminster,FOOD STANDARDS AGENCY - Westminster,2021-09-09,EXP - PURCHASE OF GOODS/SERVICES - OTHER - PROGRAMME EXPENDITURE,"NOVEL FOODS, GM, RADIOLOGICAL AND FEED ADDITIVES",C E F A S,2011700107,24486.26,Add a line to PO11770002090  req Redacted under S40 FOI act FS131008,NR33 0HT,Admin
FOOD STANDARDS AGENCY - Westminster,FOOD STANDARDS AGENCY - Westminster,2021-09-09,EXP - PURCHASE OF GOODS/SERVICES - TELECOMS - TELEPHONE,IT SERVICE DELIVERY,EXPONENTIAL E LTD,1011716783,41909,Smartwires Broadband,E1 8EU,Admin
FOOD STANDARDS AGENCY - Westminster,FOOD STANDARDS AGENCY - Westminster,2021-09-09,EXP - PURCHASE OF GOODS/SERVICES - TELECOMS - TELEPHONE,IT SERVICE DELIVERY,EXPONENTIAL E LTD,1011716783,8381.8,UK VAT - UK VAT,E1 8EU,Admin
FOOD STANDARDS AGENCY - Westminster,FOOD STANDARDS AGENCY - Westminster,2021-09-09,EXP - PURCHASE OF GOODS/SERVICES - TELECOMS - TELEPHONE,IT SERVICE DELIVERY,EXPONENTIAL E LTD,1011716783,23.5,Plant Lines,E1 8EU,Admin
FOOD STANDARDS AGENCY - Westminster,FOOD STANDARDS AGENCY - Westminster,2021-09-09,EXP - PURCHASE OF GOODS/SERVICES - TELECOMS - TELEPHONE,IT SERVICE DELIVERY,EXPONENTIAL E LTD,1011716783,56.66,Plant Lines,E1 8EU,Admin
FOOD STANDARDS AGENCY - Westminster,FOOD STANDARDS AGENCY - Westminster,2021-09-09,EXP - PURCHASE OF GOODS/SERVICES - TELECOMS - TELEPHONE,IT SERVICE DELIVERY,EXPONENTIAL E LTD,1011716783,75,Plant Lines,E1 8EU,Admin
FOOD STANDARDS AGENCY - Westminster,FOOD STANDARDS AGENCY - Westminster,2021-09-09,EXP - PURCHASE OF GOODS/SERVICES - TELECOMS - TELEPHONE,IT SERVICE DELIVERY,EXPONENTIAL E LTD,1011716783,114.99,Plant Lines,E1 8EU,Admin
FOOD STANDARDS AGENCY - Westminster,FOOD STANDARDS AGENCY - Westminster,2021-09-09,EXP - PURCHASE OF GOODS/SERVICES - TELECOMS - TELEPHONE,IT SERVICE DELIVERY,EXPONENTIAL E LTD,1011716783,184.67,Plant Lines,E1 8EU,Admin
FOOD STANDARDS AGENCY - Westminster,FOOD STANDARDS AGENCY - Westminster,2021-09-09,EXP - PURCHASE OF GOODS/SERVICES - TELECOMS - TELEPHONE,IT SERVICE DELIVERY,EXPONENTIAL E LTD,1011716783,275.25,Plant Lines,E1 8EU,Admin
FOOD STANDARDS AGENCY - Westminster,FOOD STANDARDS AGENCY - Westminster,2021-09-09,EXP - PURCHASE OF GOODS/SERVICES - TELECOMS - TELEPHONE,IT SERVICE DELIVERY,EXPONENTIAL E LTD,1011716783,4.7,UK VAT - UK VAT,E1 8EU,Admin
FOOD STANDARDS AGENCY - Westminster,FOOD STANDARDS AGENCY - Westminster,2021-09-09,EXP - PURCHASE OF GOODS/SERVICES - TELECOMS - TELEPHONE,IT SERVICE DELIVERY,EXPONENTIAL E LTD,1011716783,11.33,UK VAT - UK VAT,E1 8EU,Admin
FOOD STANDARDS AGENCY - Westminster,FOOD STANDARDS AGENCY - Westminster,2021-09-09,EXP - PURCHASE OF GOODS/SERVICES - TELECOMS - TELEPHONE,IT SERVICE DELIVERY,EXPONENTIAL E LTD,1011716783,15,UK VAT - UK VAT,E1 8EU,Admin
FOOD STANDARDS AGENCY - Westminster,FOOD STANDARDS AGENCY - Westminster,2021-09-09,EXP - PURCHASE OF GOODS/SERVICES - TELECOMS - TELEPHONE,IT SERVICE DELIVERY,EXPONENTIAL E LTD,1011716783,23,UK VAT - UK VAT,E1 8EU,Admin
FOOD STANDARDS AGENCY - Westminster,FOOD STANDARDS AGENCY - Westminster,2021-09-09,EXP - PURCHASE OF GOODS/SERVICES - TELECOMS - TELEPHONE,IT SERVICE DELIVERY,EXPONENTIAL E LTD,1011716783,36.93,UK VAT - UK VAT,E1 8EU,Admin
FOOD STANDARDS AGENCY - Westminster,FOOD STANDARDS AGENCY - Westminster,2021-09-09,EXP - PURCHASE OF GOODS/SERVICES - TELECOMS - TELEPHONE,IT SERVICE DELIVERY,EXPONENTIAL E LTD,1011716783,55.05,UK VAT - UK VAT,E1 8EU,Admin
FOOD STANDARDS AGENCY - Westminster,FOOD STANDARDS AGENCY - Westminster,2021-09-09,EXP - PURCHASE OF GOODS/SERVICES - OTHER - CARRIAGE OF SAMPLES,OPERATIONAL DELIVERY,TOPSPEED COURIERS LIMITED,1011716787,2043.6,Topspeed Couriers - Collection of Raw Cows Drinking Milk Samples - Delivery of Official Controls,WA16 8XN,Admin
FOOD STANDARDS AGENCY - Westminster,FOOD STANDARDS AGENCY - Westminster,2021-09-09,EXP - PURCHASE OF GOODS/SERVICES - OTHER - CARRIAGE OF SAMPLES,OPERATIONAL DELIVERY,TOPSPEED COURIERS LIMITED,1011716787,46.58,Topspeed Couriers - EBL Collections,WA16 8XN,Admin
FOOD STANDARDS AGENCY - Westminster,FOOD STANDARDS AGENCY - Westminster,2021-09-09,EXP - PURCHASE OF GOODS/SERVICES - OTHER - ANALYSIS OF SAMPLES (NON TRICHINELLA),OPERATIONAL DELIVERY,TOPSPEED COURIERS LIMITED,1011716787,162,Topspeed - TB DNA collections,WA16 8XN,Admin
FOOD STANDARDS AGENCY - Westminster,FOOD STANDARDS AGENCY - Westminster,2021-09-09,EXP - PURCHASE OF GOODS/SERVICES - OTHER - CARRIAGE OF SAMPLES,OPERATIONAL DELIVERY,TOPSPEED COURIERS LIMITED,1011716787,13719.6,Topspeed Couriers - Collection of Trichinella samples - Delivery of Official Controls,WA16 8XN,Admin
FOOD STANDARDS AGENCY - Westminster,FOOD STANDARDS AGENCY - Westminster,2021-09-09,EXP - PURCHASE OF GOODS/SERVICES - OTHER - CARRIAGE OF SAMPLES,OPERATIONAL DELIVERY,TOPSPEED COURIERS LIMITED,1011716787,1057.5,Topspeed Couriers - Return of RIM boxes to APHA sites,WA16 8XN,Admin
FOOD STANDARDS AGENCY - Westminster,FOOD STANDARDS AGENCY - Westminster,2021-09-09,EXP - PURCHASE OF GOODS/SERVICES - OTHER - CARRIAGE OF SAMPLES,OPERATIONAL DELIVERY,TOPSPEED COURIERS LIMITED,1011716787,16601.4,Topspeed Couriers - Collection of RIM samples,WA16 8XN,Admin
FOOD STANDARDS AGENCY - Westminster,FOOD STANDARDS AGENCY - Westminster,2021-09-09,EXP - PURCHASE OF GOODS/SERVICES - OTHER - CARRIAGE OF SAMPLES,OPERATIONAL DELIVERY,TOPSPEED COURIERS LIMITED,1011716787,5216.96,Topspeed - Collect and Deliver TB samples to APHA,WA16 8XN,Admin
FOOD STANDARDS AGENCY - Westminster,FOOD STANDARDS AGENCY - Westminster,2021-09-09,EXP - PURCHASE OF GOODS/SERVICES - OTHER - CARRIAGE OF SAMPLES,OPERATIONAL DELIVERY,TOPSPEED COURIERS LIMITED,1011716787,1450,Topspeed Couriers - Pig AMR sample collections,WA16 8XN,Admin
FOOD STANDARDS AGENCY - Westminster,FOOD STANDARDS AGENCY - Westminster,2021-09-09,EXP - PURCHASE OF GOODS/SERVICES - OTHER - PROGRAMME EXPENDITURE,RISK ASSESSMENT - RESEARCH AND DEVELOPMENT,ELSEVIER B V,1011716786,40482.8,Science Direct (Elsevier) subscription Redacted under S40 FOI act,1043 NX,Admin
FOOD STANDARDS AGENCY - Westminster,FOOD STANDARDS AGENCY - Westminster,2021-09-13,EXP - PURCHASE OF GOODS/SERVICES - ACCOMM & BLDNG MGMT - SHARED SITE RECHARGE,SECURITY & ESTATES,NATIONAL LOTTERY COMMUNITY FUND,1011716807,6486.51,Apex House Charges Redacted under S43 FOI Act,B15 1TR,Admin
FOOD STANDARDS AGENCY - Westminster,FOOD STANDARDS AGENCY - Westminster,2021-09-13,EXP - PURCHASE OF GOODS/SERVICES - ACCOMM & BLDNG MGMT - SHARED SITE RECHARGE,SECURITY & ESTATES,NATIONAL LOTTERY COMMUNITY FUND,1011716807,32432.55,SOP1-822339-901256-174097-APEX HOUSE CHARGES,B15 1TR,Admin
FOOD STANDARDS AGENCY - Westminster,FOOD STANDARDS AGENCY - Westminster,2021-09-14,EXP - PURCHASE OF GOODS/SERVICES - OTHER - PROGRAMME EXPENDITURE,Surveillance,I10 LTD,1011716819,18539.43,FSA728 WP20 Reducing Friction in International Trade (BC762),NG31 6JL,Admin
FOOD STANDARDS AGENCY - Westminster,FOOD STANDARDS AGENCY - Westminster,2021-09-14,EXP - PURCHASE OF GOODS/SERVICES - OTHER - PROGRAMME EXPENDITURE,Surveillance,I10 LTD,1011716819,3707.89,UK VAT - UK VAT,NG31 6JL,Admin
FOOD STANDARDS AGENCY - Westminster,FOOD STANDARDS AGENCY - Westminster,2021-09-14,EXP - PURCHASE OF GOODS/SERVICES - OTHER - PROGRAMME EXPENDITURE,Surveillance,I10 LTD,1011716819,15025,FSA728 - WP035 Information Flows Phase 2 (BC853),NG31 6JL,Admin
FOOD STANDARDS AGENCY - Westminster,FOOD STANDARDS AGENCY - Westminster,2021-09-14,EXP - PURCHASE OF GOODS/SERVICES - OTHER - PROGRAMME EXPENDITURE,Surveillance,I10 LTD,1011716819,3005,UK VAT - UK VAT,NG31 6JL,Admin
FOOD STANDARDS AGENCY - Westminster,FOOD STANDARDS AGENCY - Westminster,2021-09-14,EXP - PURCHASE OF GOODS/SERVICES - ICT OUTSOURCING & MAINT/SUPPORT,IT STRATEGY & DEVELOPMENT,I10 LTD,1011716819,5797,FSA728 - WP023 Network support  Plant IT (BC847),NG31 6JL,Admin
FOOD STANDARDS AGENCY - Westminster,FOOD STANDARDS AGENCY - Westminster,2021-09-14,EXP - PURCHASE OF GOODS/SERVICES - ICT OUTSOURCING & MAINT/SUPPORT,IT STRATEGY & DEVELOPMENT,I10 LTD,1011716819,1159.4,UK VAT - UK VAT,NG31 6JL,Admin
FOOD STANDARDS AGENCY - Westminster,FOOD STANDARDS AGENCY - Westminster,2021-09-14,EXP - PURCHASE OF GOODS/SERVICES - OTHER - PROGRAMME EXPENDITURE,DIGITAL,I10 LTD,1011716819,9761.25,FSA728 - WP036 SAC D9 Upgrade,NG31 6JL,Admin
FOOD STANDARDS AGENCY - Westminster,FOOD STANDARDS AGENCY - Westminster,2021-09-14,EXP - PURCHASE OF GOODS/SERVICES - OTHER - PROGRAMME EXPENDITURE,DIGITAL,I10 LTD,1011716819,23929,FSA728 - WP039 Front End Rebuild,NG31 6JL,Admin
FOOD STANDARDS AGENCY - Westminster,FOOD STANDARDS AGENCY - Westminster,2021-09-14,EXP - PURCHASE OF GOODS/SERVICES - OTHER - PROGRAMME EXPENDITURE,DIGITAL,I10 LTD,1011716819,4785.8,UK VAT - UK VAT,NG31 6JL,Admin
FOOD STANDARDS AGENCY - Westminster,FOOD STANDARDS AGENCY - Westminster,2021-09-16,"EXP - PURCHASE OF GOODS/SERVICES - TRICHINELLA TESTING, CARRIAGE & CONSUMABLES",OPERATIONAL DELIVERY,PILGRIMS PRIDE LTD,1011716842,117559.2,Pilgrims Westerleigh - Delivery of Official Controls - Trichinella Testin,CV34 6DA,Admin
FOOD STANDARDS AGENCY - Westminster,FOOD STANDARDS AGENCY - Westminster,2021-09-16,"EXP - PURCHASE OF GOODS/SERVICES - TRICHINELLA TESTING, CARRIAGE & CONSUMABLES",OPERATIONAL DELIVERY,PILGRIMS PRIDE LTD,1011716842,23511.84,UK VAT - UK VAT,CV34 6DA,Admin
FOOD STANDARDS AGENCY - Westminster,FOOD STANDARDS AGENCY - Westminster,2021-09-16,EXP - PURCHASE OF GOODS/SERVICES- OTHER - LEASE CAR COSTS,NFCU II - Prevention and Investigation,LEX AUTOLEASE LTD,1011716838,-3142.65,LEX - Redacted under S43 FOI Act,SK3 0RB,Admin
FOOD STANDARDS AGENCY - Westminster,FOOD STANDARDS AGENCY - Westminster,2021-09-16,EXP - PURCHASE OF GOODS/SERVICES- OTHER - LEASE CAR COSTS,OPERATIONAL DELIVERY,LEX AUTOLEASE LTD,1011716838,-517.22,L8 to Bulk PO11770003809 Field Ops Lease Carss,SK3 0RB,Admin
FOOD STANDARDS AGENCY - Westminster,FOOD STANDARDS AGENCY - Westminster,2021-09-16,EXP - PURCHASE OF GOODS/SERVICES- OTHER - LEASE CAR COSTS,OPERATIONAL DELIVERY,LEX AUTOLEASE LTD,1011716838,207.29,L9 to Bulk PO11770003809 Lease Cars for Field Ops,SK3 0RB,Admin
FOOD STANDARDS AGENCY - Westminster,FOOD STANDARDS AGENCY - Westminster,2021-09-16,EXP - PURCHASE OF GOODS/SERVICES- OTHER - LEASE CAR COSTS,OPERATIONAL DELIVERY,LEX AUTOLEASE LTD,1011716838,229.11,L9 to Bulk PO11770003809 Lease Cars for Field Ops,SK3 0RB,Admin
FOOD STANDARDS AGENCY - Westminster,FOOD STANDARDS AGENCY - Westminster,2021-09-16,EXP - PURCHASE OF GOODS/SERVICES- OTHER - LEASE CAR COSTS,OPERATIONAL DELIVERY,LEX AUTOLEASE LTD,1011716838,261.37,L9 to Bulk PO11770003809 Lease Cars for Field Ops,SK3 0RB,Admin
FOOD STANDARDS AGENCY - Westminster,FOOD STANDARDS AGENCY - Westminster,2021-09-16,EXP - PURCHASE OF GOODS/SERVICES- OTHER - LEASE CAR COSTS,OPERATIONAL DELIVERY,LEX AUTOLEASE LTD,1011716838,261.37,L9 to Bulk PO11770003809 Lease Cars for Field Ops,SK3 0RB,Admin
FOOD STANDARDS AGENCY - Westminster,FOOD STANDARDS AGENCY - Westminster,2021-09-16,EXP - PURCHASE OF GOODS/SERVICES- OTHER - LEASE CAR COSTS,OPERATIONAL DELIVERY,LEX AUTOLEASE LTD,1011716838,261.37,L9 to Bulk PO11770003809 Lease Cars for Field Ops,SK3 0RB,Admin
FOOD STANDARDS AGENCY - Westminster,FOOD STANDARDS AGENCY - Westminster,2021-09-16,EXP - PURCHASE OF GOODS/SERVICES- OTHER - LEASE CAR COSTS,OPERATIONAL DELIVERY,LEX AUTOLEASE LTD,1011716838,261.37,L9 to Bulk PO11770003809 Lease Cars for Field Ops,SK3 0RB,Admin
FOOD STANDARDS AGENCY - Westminster,FOOD STANDARDS AGENCY - Westminster,2021-09-16,EXP - PURCHASE OF GOODS/SERVICES- OTHER - LEASE CAR COSTS,OPERATIONAL DELIVERY,LEX AUTOLEASE LTD,1011716838,261.37,L9 to Bulk PO11770003809 Lease Cars for Field Ops,SK3 0RB,Admin
FOOD STANDARDS AGENCY - Westminster,FOOD STANDARDS AGENCY - Westminster,2021-09-16,EXP - PURCHASE OF GOODS/SERVICES- OTHER - LEASE CAR COSTS,OPERATIONAL DELIVERY,LEX AUTOLEASE LTD,1011716838,261.77,L9 to Bulk PO11770003809 Lease Cars for Field Ops,SK3 0RB,Admin
FOOD STANDARDS AGENCY - Westminster,FOOD STANDARDS AGENCY - Westminster,2021-09-16,EXP - PURCHASE OF GOODS/SERVICES- OTHER - LEASE CAR COSTS,OPERATIONAL DELIVERY,LEX AUTOLEASE LTD,1011716838,261.77,L9 to Bulk PO11770003809 Lease Cars for Field Ops,SK3 0RB,Admin
FOOD STANDARDS AGENCY - Westminster,FOOD STANDARDS AGENCY - Westminster,2021-09-16,EXP - PURCHASE OF GOODS/SERVICES- OTHER - LEASE CAR COSTS,OPERATIONAL DELIVERY,LEX AUTOLEASE LTD,1011716838,275.34,L9 to Bulk PO11770003809 Lease Cars for Field Ops,SK3 0RB,Admin
FOOD STANDARDS AGENCY - Westminster,FOOD STANDARDS AGENCY - Westminster,2021-09-16,EXP - PURCHASE OF GOODS/SERVICES- OTHER - LEASE CAR COSTS,OPERATIONAL DELIVERY,LEX AUTOLEASE LTD,1011716838,281.3,L9 to Bulk PO11770003809 Lease Cars for Field Ops,SK3 0RB,Admin
FOOD STANDARDS AGENCY - Westminster,FOOD STANDARDS AGENCY - Westminster,2021-09-16,EXP - PURCHASE OF GOODS/SERVICES- OTHER - LEASE CAR COSTS,OPERATIONAL DELIVERY,LEX AUTOLEASE LTD,1011716838,303.16,L9 to Bulk PO11770003809 Lease Cars for Field Ops,SK3 0RB,Admin
FOOD STANDARDS AGENCY - Westminster,FOOD STANDARDS AGENCY - Westminster,2021-09-16,EXP - PURCHASE OF GOODS/SERVICES- OTHER - LEASE CAR COSTS,OPERATIONAL DELIVERY,LEX AUTOLEASE LTD,1011716838,326.18,L9 to Bulk PO11770003809 Lease Cars for Field Ops,SK3 0RB,Admin
FOOD STANDARDS AGENCY - Westminster,FOOD STANDARDS AGENCY - Westminster,2021-09-16,EXP - PURCHASE OF GOODS/SERVICES- OTHER - LEASE CAR COSTS,OPERATIONAL DELIVERY,LEX AUTOLEASE LTD,1011716838,326.18,L9 to Bulk PO11770003809 Lease Cars for Field Ops,SK3 0RB,Admin
FOOD STANDARDS AGENCY - Westminster,FOOD STANDARDS AGENCY - Westminster,2021-09-16,EXP - PURCHASE OF GOODS/SERVICES- OTHER - LEASE CAR COSTS,OPERATIONAL DELIVERY,LEX AUTOLEASE LTD,1011716838,326.18,L9 to Bulk PO11770003809 Lease Cars for Field Ops,SK3 0RB,Admin
FOOD STANDARDS AGENCY - Westminster,FOOD STANDARDS AGENCY - Westminster,2021-09-16,EXP - PURCHASE OF GOODS/SERVICES- OTHER - LEASE CAR COSTS,OPERATIONAL DELIVERY,LEX AUTOLEASE LTD,1011716838,331.67,L9 to Bulk PO11770003809 Lease Cars for Field Ops,SK3 0RB,Admin
FOOD STANDARDS AGENCY - Westminster,FOOD STANDARDS AGENCY - Westminster,2021-09-16,EXP - PURCHASE OF GOODS/SERVICES- OTHER - LEASE CAR COSTS,OPERATIONAL DELIVERY,LEX AUTOLEASE LTD,1011716838,331.67,L9 to Bulk PO11770003809 Lease Cars for Field Ops,SK3 0RB,Admin
FOOD STANDARDS AGENCY - Westminster,FOOD STANDARDS AGENCY - Westminster,2021-09-16,EXP - PURCHASE OF GOODS/SERVICES- OTHER - LEASE CAR COSTS,OPERATIONAL DELIVERY,LEX AUTOLEASE LTD,1011716838,2467.68,L9 to Bulk PO11770003809 Lease Cars for Field Ops,SK3 0RB,Admin
FOOD STANDARDS AGENCY - Westminster,FOOD STANDARDS AGENCY - Westminster,2021-09-16,EXP - PURCHASE OF GOODS/SERVICES- OTHER - LEASE CAR COSTS,OPERATIONAL DELIVERY,LEX AUTOLEASE LTD,1011716838,3632.16,L9 to Bulk PO11770003809 Lease Cars for Field Ops,SK3 0RB,Admin
FOOD STANDARDS AGENCY - Westminster,FOOD STANDARDS AGENCY - Westminster,2021-09-16,EXP - PURCHASE OF GOODS/SERVICES- OTHER - LEASE CAR COSTS,OPERATIONAL DELIVERY,LEX AUTOLEASE LTD,1011716838,3707.64,L9 to Bulk PO11770003809 Lease Cars for Field Ops,SK3 0RB,Admin
FOOD STANDARDS AGENCY - Westminster,FOOD STANDARDS AGENCY - Westminster,2021-09-16,EXP - PURCHASE OF GOODS/SERVICES- OTHER - LEASE CAR COSTS,OPERATIONAL DELIVERY,LEX AUTOLEASE LTD,1011716838,3998.52,L9 to Bulk PO11770003809 Lease Cars for Field Ops,SK3 0RB,Admin
FOOD STANDARDS AGENCY - Westminster,FOOD STANDARDS AGENCY - Westminster,2021-09-16,EXP - PURCHASE OF GOODS/SERVICES- OTHER - LEASE CAR COSTS,OPERATIONAL DELIVERY,LEX AUTOLEASE LTD,1011716838,-611.55,Lex - Lease vehicles - Field Ops - Redacted under S43 FOI Act,SK3 0RB,Admin
FOOD STANDARDS AGENCY - Westminster,FOOD STANDARDS AGENCY - Westminster,2021-09-16,EXP - PURCHASE OF GOODS/SERVICES- OTHER - LEASE CAR COSTS,NFCU I - Analysis,LEX AUTOLEASE LTD,1011716838,350,NFCU - Redacted under S43 FOI Act,SK3 0RB,Admin
FOOD STANDARDS AGENCY - Westminster,FOOD STANDARDS AGENCY - Westminster,2021-09-16,EXP - PURCHASE OF GOODS/SERVICES- OTHER - LEASE CAR COSTS,OPERATIONAL ASSURANCE,LEX AUTOLEASE LTD,1011716838,2957.4,Bulk PO for Ops Delivery Lease Cars,SK3 0RB,Admin
FOOD STANDARDS AGENCY - Westminster,FOOD STANDARDS AGENCY - Westminster,2021-09-16,EXP - PURCHASE OF GOODS/SERVICES- OTHER - LEASE CAR COSTS,OPERATIONAL ASSURANCE,LEX AUTOLEASE LTD,1011716838,3272.16,Bulk PO for Ops Delivery Lease Cars,SK3 0RB,Admin
FOOD STANDARDS AGENCY - Westminster,FOOD STANDARDS AGENCY - Westminster,2021-09-16,EXP - PURCHASE OF GOODS/SERVICES- OTHER - LEASE CAR COSTS,OPERATIONAL ASSURANCE,LEX AUTOLEASE LTD,1011716838,3594,Bulk PO for Ops Delivery Lease Cars,SK3 0RB,Admin
FOOD STANDARDS AGENCY - Westminster,FOOD STANDARDS AGENCY - Westminster,2021-09-17,EXP - PURCHASE OF GOODS/SERVICES - SHARED SERV OUTSRCG- CIVIL SERV PENSION ADMIN,FINANCE,LONDON PENSIONS FUND AUTHORITY,1011716851,125000,SOP1-824355-173305-174097-LPFA ERS,EC3N 4LP,Admin
FOOD STANDARDS AGENCY - Westminster,FOOD STANDARDS AGENCY - Westminster,2021-09-20,EXP - PURCHASE OF GOODS/SERVICES - OTHER - PROGRAMME EXPENDITURE,Surveillance,COGNIZANT WORLDWIDE LTD,1011716859,4720,UK VAT - UK VAT,W2 6BD,Admin
FOOD STANDARDS AGENCY - Westminster,FOOD STANDARDS AGENCY - Westminster,2021-09-20,EXP - PURCHASE OF GOODS/SERVICES - OTHER - PROGRAMME EXPENDITURE,Surveillance,COGNIZANT WORLDWIDE LTD,1011716859,23600,WP16 Azure Data Migration Redacted under S43 FOI Act (BC857),W2 6BD,Admin
FOOD STANDARDS AGENCY - Westminster,FOOD STANDARDS AGENCY - Westminster,2021-09-20,EXP - PURCHASE OF GOODS/SERVICES - OTHER - PROGRAMME EXPENDITURE,Surveillance,COGNIZANT WORLDWIDE LTD,1011716859,19950,Data Science Core Team Redacted under S43 FOI Act (BC881),W2 6BD,Admin
FOOD STANDARDS AGENCY - Westminster,FOOD STANDARDS AGENCY - Westminster,2021-09-20,EXP - PURCHASE OF GOODS/SERVICES - OTHER - PROGRAMME EXPENDITURE,Surveillance,COGNIZANT WORLDWIDE LTD,1011716859,58406,Data Science Core Team Redacted under S43 FOI Act (BC881),W2 6BD,Admin
FOOD STANDARDS AGENCY - Westminster,FOOD STANDARDS AGENCY - Westminster,2021-09-20,EXP - PURCHASE OF GOODS/SERVICES - OTHER - PROGRAMME EXPENDITURE,Surveillance,COGNIZANT WORLDWIDE LTD,1011716859,3990,UK VAT - UK VAT,W2 6BD,Admin
FOOD STANDARDS AGENCY - Westminster,FOOD STANDARDS AGENCY - Westminster,2021-09-20,EXP - PURCHASE OF GOODS/SERVICES - OTHER - PROGRAMME EXPENDITURE,Surveillance,COGNIZANT WORLDWIDE LTD,1011716859,11681.2,UK VAT - UK VAT,W2 6BD,Admin
FOOD STANDARDS AGENCY - Westminster,FOOD STANDARDS AGENCY - Westminster,2021-09-20,EXP - PURCHASE OF GOODS/SERVICES - OTHER - PROGRAMME EXPENDITURE,Surveillance,COGNIZANT WORLDWIDE LTD,1011716859,10780,Data Science Extended Team (BC883),W2 6BD,Admin
FOOD STANDARDS AGENCY - Westminster,FOOD STANDARDS AGENCY - Westminster,2021-09-20,EXP - PURCHASE OF GOODS/SERVICES - OTHER - PROGRAMME EXPENDITURE,Surveillance,COGNIZANT WORLDWIDE LTD,1011716859,2156,UK VAT - UK VAT,W2 6BD,Admin
FOOD STANDARDS AGENCY - Westminster,FOOD STANDARDS AGENCY - Westminster,2021-09-20,EXP - PURCHASE OF GOODS/SERVICES - OTHER - PROGRAMME EXPENDITURE,"NOVEL FOODS, GM, RADIOLOGICAL AND FEED ADDITIVES",C E F A S,2011700110,78695.79,FS101211 Redacted under S43 FOI Act of Radiological monitoring programme: sample collection and analysis  REQ by Redacted under S40 FOI act,NR33 0HT,Admin
FOOD STANDARDS AGENCY - Westminster,FOOD STANDARDS AGENCY - Westminster,2021-09-20,EXP - PURCHASE OF GOODS/SERVICES - OTHER - PROGRAMME EXPENDITURE,Surveillance,I10 LTD,1011716860,2675,FSA728 - WP035 Information Flows Phase 2 (BC853),NG31 6JL,Admin
FOOD STANDARDS AGENCY - Westminster,FOOD STANDARDS AGENCY - Westminster,2021-09-20,EXP - PURCHASE OF GOODS/SERVICES - OTHER - PROGRAMME EXPENDITURE,Surveillance,I10 LTD,1011716860,535,UK VAT - UK VAT,NG31 6JL,Admin
FOOD STANDARDS AGENCY - Westminster,FOOD STANDARDS AGENCY - Westminster,2021-09-20,EXP - PURCHASE OF GOODS/SERVICES - OTHER - PROGRAMME EXPENDITURE,DIGITAL,I10 LTD,1011716860,43260,FSA728 - WP30 Ernie Part 1 (BC759),NG31 6JL,Admin
FOOD STANDARDS AGENCY - Westminster,FOOD STANDARDS AGENCY - Westminster,2021-09-20,EXP - PURCHASE OF GOODS/SERVICES - OTHER - PROGRAMME EXPENDITURE,DIGITAL,I10 LTD,1011716860,8652,UK VAT - UK VAT,NG31 6JL,Admin
FOOD STANDARDS AGENCY - Westminster,FOOD STANDARDS AGENCY - Westminster,2021-09-20,EXP - PURCHASE OF GOODS/SERVICES - OTHER ICT COSTS - COMPUTER SOFTWARE,IT SERVICE DELIVERY,PHOENIX SOFTWARE LIMITED,1011716857,34755,FS430711 Microsoft 150x E5 Licenses Co-Termed untilRedacted under S43 FOI Act  (BC711),YO42 1NS,Admin
FOOD STANDARDS AGENCY - Westminster,FOOD STANDARDS AGENCY - Westminster,2021-09-20,EXP - PURCHASE OF GOODS/SERVICES - OTHER ICT COSTS - COMPUTER SOFTWARE,IT SERVICE DELIVERY,PHOENIX SOFTWARE LIMITED,1011716857,6951,UK VAT - UK VAT,YO42 1NS,Admin
FOOD STANDARDS AGENCY - Westminster,FOOD STANDARDS AGENCY - Westminster,2021-09-21,EXP - PURCHASE OF GOODS/SERVICES - OTHER - PROGRAMME EXPENDITURE,ANALYTICS UNIT,ASTON UNIVERSITY,1011716863,43670.17,"Food hypersensitivities: Capturing Quality of Life (QoL), BehaviouralMeasures and Willingness to Pay (WTP) in the UK",B4 7ET,Admin
FOOD STANDARDS AGENCY - Westminster,FOOD STANDARDS AGENCY - Westminster,2021-09-21,EXP - PURCHASE OF GOODS/SERVICES - OTHER - PROGRAMME EXPENDITURE,RISK ASSESSMENT - RESEARCH AND DEVELOPMENT,UK HEALTH SECURITY AGENCY,2011700111,22907.85,"Survey of Salmonella, E. coli and E. coli and antimicrobial resistance (AMR) Req Redacted under S40 FOI act. FS430677",SP4 0JG,Admin
FOOD STANDARDS AGENCY - Westminster,FOOD STANDARDS AGENCY - Westminster,2021-09-22,EXP - PURCHASE OF GOODS/SERVICES - IT MANAGEMENT AND CHANGE - IT DEVELOPMENT,"DATA, INFORMATION, GOVERNANCE AND SECURITY",I10 LTD,1011716868,37075,FSA728 - WP26 Sharepoint Architecture - Pilot (BC779),NG31 6JL,Admin
FOOD STANDARDS AGENCY - Westminster,FOOD STANDARDS AGENCY - Westminster,2021-09-22,EXP - PURCHASE OF GOODS/SERVICES - IT MANAGEMENT AND CHANGE - IT DEVELOPMENT,"DATA, INFORMATION, GOVERNANCE AND SECURITY",I10 LTD,1011716868,7415,UK VAT - UK VAT,NG31 6JL,Admin
FOOD STANDARDS AGENCY - Westminster,FOOD STANDARDS AGENCY - Westminster,2021-09-22,EXP - PURCHASE OF GOODS/SERVICES - OTHER FACILTIES COSTS - SECURITY,"DATA, INFORMATION, GOVERNANCE AND SECURITY",I10 LTD,1011716868,10050,FSA728 - WP032 Security Approach Review (BC763),NG31 6JL,Admin
FOOD STANDARDS AGENCY - Westminster,FOOD STANDARDS AGENCY - Westminster,2021-09-22,EXP - PURCHASE OF GOODS/SERVICES - OTHER FACILTIES COSTS - SECURITY,"DATA, INFORMATION, GOVERNANCE AND SECURITY",I10 LTD,1011716868,2010,UK VAT - UK VAT,NG31 6JL,Admin
FOOD STANDARDS AGENCY - Westminster,FOOD STANDARDS AGENCY - Westminster,2021-09-23,"EXP - PURCHASE OF GOODS/SERVICES - TRICHINELLA TESTING, CARRIAGE & CONSUMABLES",OPERATIONAL DELIVERY,PILGRIMS PRIDE LTD,1011716877,11551.8,Tulip - Dalehead - Delivery of Official Controls - Trichinella testing,CV34 6DA,Admin
FOOD STANDARDS AGENCY - Westminster,FOOD STANDARDS AGENCY - Westminster,2021-09-23,"EXP - PURCHASE OF GOODS/SERVICES - TRICHINELLA TESTING, CARRIAGE & CONSUMABLES",OPERATIONAL DELIVERY,PILGRIMS PRIDE LTD,1011716877,15412.2,Tulip - Dalehead - Delivery of Official Controls - Trichinella testing,CV34 6DA,Admin
FOOD STANDARDS AGENCY - Westminster,FOOD STANDARDS AGENCY - Westminster,2021-09-24,Redacted under S43 FOI Act,OPERATIONAL DELIVERY,Redacted under S43 FOI Act,1011716884,31200,Variartion 11 & 12 Redacted under S43 FOI Act & backdated var 12 Redacted under S43 FOI Act,LS15 8ZB,Admin
FOOD STANDARDS AGENCY - Westminster,FOOD STANDARDS AGENCY - Westminster,2021-09-24,EXP - PURCHASE OF GOODS/SERVICES - OTHER - PROGRAMME EXPENDITURE,RISK ASSESSMENT - RESEARCH AND DEVELOPMENT,UK HEALTH SECURITY AGENCY,2011700116,510000,CO-FUNDING OF NATIONAL DIETARY AND NUTRITION SURVEY (NDNS) BY THE AGENCY - Redacted under S40 FOI act,NW9 5EQ,Admin
FOOD STANDARDS AGENCY - Westminster,FOOD STANDARDS AGENCY - Westminster,2021-09-24,EXP - PURCHASE OF GOODS/SERVICES - OTHER - PROGRAMME EXPENDITURE,COMMS,MSQ PARTNERS GROUP LTD,1011716892,5391.97,Strategy & channel planning for next phase; MSQ Redacted under S40 FOI act,WC2E 7AU,Admin
FOOD STANDARDS AGENCY - Westminster,FOOD STANDARDS AGENCY - Westminster,2021-09-24,EXP - PURCHASE OF GOODS/SERVICES - OTHER - PROGRAMME EXPENDITURE,FOOD HYPERSENSITIVITIES,MSQ PARTNERS GROUP LTD,1011716892,11428.21,Design costs for advertising for PPDS Please raise PO for Redacted under S40 FOI act FS430714.,WC2E 7AU,Admin
FOOD STANDARDS AGENCY - Westminster,FOOD STANDARDS AGENCY - Westminster,2021-09-24,EXP - PURCHASE OF GOODS/SERVICES - OFFICE RELATED - PUBLICATIONS,COMMS,MSQ PARTNERS GROUP LTD,1011716892,15000,MSQ - Awards Internal Comms,WC2E 7AU,Admin
FOOD STANDARDS AGENCY - Westminster,FOOD STANDARDS AGENCY - Westminster,2021-09-24,EXP - PURCHASE OF GOODS/SERVICES - OTHER - PROGRAMME EXPENDITURE,RISK ASSESSMENT - RESEARCH AND DEVELOPMENT,CAMPDEN BRI,1011716888,25303.57,Optimising extraction and RT-qPCR-based detection of hepatitis E virus (HEV) from pork meat and products (HEVdetect),GL55 6LD,Admin
FOOD STANDARDS AGENCY - Westminster,FOOD STANDARDS AGENCY - Westminster,2021-09-27,EXP - PURCHASE OF GOODS/SERVICES - TELECOMS - TELEPHONE,IT SERVICE DELIVERY,LITTLE FISH UK LTD,1011716897,14209,IT1 Networks Design and Delivery (LAN) Redacted under S43 FOI Act,NG1 1LS,Admin
FOOD STANDARDS AGENCY - Westminster,FOOD STANDARDS AGENCY - Westminster,2021-09-27,EXP - PURCHASE OF GOODS/SERV - SUPPORT - IT SUPPORT SERVICES,IT SERVICE DELIVERY,LITTLE FISH UK LTD,1011716897,27530.39,FS430637 Service DeskRedacted under S43 FOI Act (BC695),NG1 1LS,Admin
FOOD STANDARDS AGENCY - Westminster,FOOD STANDARDS AGENCY - Westminster,2021-09-27,EXP - PURCHASE OF GOODS/SERV - SUPPORT - IT SUPPORT SERVICES,IT SERVICE DELIVERY,LITTLE FISH UK LTD,1011716897,5506.08,UK VAT - UK VAT,NG1 1LS,Admin
FOOD STANDARDS AGENCY - Westminster,FOOD STANDARDS AGENCY - Westminster,2021-09-27,EXP - PURCHASE OF GOODS/SERV - SUPPORT - IT SUPPORT SERVICES,IT SERVICE DELIVERY,LITTLE FISH UK LTD,1011716897,27894.77,FS430633 Endpoint Management (EPM) (BC695),NG1 1LS,Admin
FOOD STANDARDS AGENCY - Westminster,FOOD STANDARDS AGENCY - Westminster,2021-09-27,EXP - PURCHASE OF GOODS/SERV - SUPPORT - IT SUPPORT SERVICES,IT SERVICE DELIVERY,LITTLE FISH UK LTD,1011716897,5578.95,UK VAT - UK VAT,NG1 1LS,Admin
FOOD STANDARDS AGENCY - Westminster,FOOD STANDARDS AGENCY - Westminster,2021-09-30,EXP - PURCHASE OF GOODS/SERVICES - OTHER - PROGRAMME EXPENDITURE,FOOD HYPERSENSITIVITIES,GLASGOWS LTD,1011716918,23553.2,Hosting of two FSA webinars on PPDS allergen labelling changes - one for LAs & one for Food Businesses,PR25 3UQ,Admin
